[Event "Early-Titled-Tuesday-Blitz-January-30-2024"]
[Site "Chess.com"]
[Date "2024.01.30"]
[Round "3"]
[White "PabloZarnicki"]
[Black "LaPiToB"]
[Result "1-0"]
[WhiteElo "2568"]
[BlackElo "2286"]
[TimeControl "180+1"]
[EndTime "8:28:26 PST"]
[Termination "PabloZarnicki won by resignation"]

1. e4 {[%clk 0:03:00.9]} 1... c6 {[%clk 0:02:56.9]} 2. d4 {[%clk 0:03:00.1]}
2... d5 {[%clk 0:02:56.5]} 3. e5 {[%clk 0:03:00.7]} 3... Bf5 {[%clk 0:02:55.9]}
4. Nf3 {[%clk 0:03:00.7]} 4... e6 {[%clk 0:02:55.4]} 5. Be2 {[%clk 0:03:01.6]}
5... Ne7 {[%clk 0:02:52.3]} 6. O-O {[%clk 0:03:02.5]} 6... h6 {[%clk 0:02:51.5]}
7. c4 {[%clk 0:03:00.8]} 7... Nd7 {[%clk 0:02:50]} 8. b3 {[%clk 0:03:01]} 8...
g5 {[%clk 0:02:49.4]} 9. Nc3 {[%clk 0:03:00.3]} 9... Bg7 {[%clk 0:02:49.3]} 10.
h3 {[%clk 0:02:57.8]} 10... Rc8 {[%clk 0:02:42.2]} 11. Ba3 {[%clk 0:02:57.8]}
11... O-O {[%clk 0:02:34.9]} 12. Bd3 {[%clk 0:02:54.9]} 12... Bxd3 {[%clk
0:02:27.2]} 13. Qxd3 {[%clk 0:02:55.8]} 13... Re8 {[%clk 0:02:27.1]} 14. Bxe7
{[%clk 0:02:49.2]} 14... Qxe7 {[%clk 0:02:25.3]} 15. c5 {[%clk 0:02:49.4]} 15...
Rf8 {[%clk 0:02:12.1]} 16. Rfe1 {[%clk 0:02:48.2]} 16... Rce8 {[%clk 0:01:56.9]}
17. Re3 {[%clk 0:02:47.8]} 17... Qd8 {[%clk 0:01:49.6]} 18. b4 {[%clk
0:02:43.9]} 18... a6 {[%clk 0:01:12.6]} 19. Rae1 {[%clk 0:02:40.1]} 19... Re7
{[%clk 0:01:11.8]} 20. Ne2 {[%clk 0:02:39.9]} 20... Kh8 {[%clk 0:00:59.2]} 21.
Ng3 {[%clk 0:02:32.6]} 21... Rg8 {[%clk 0:00:57]} 22. Nh5 {[%clk 0:02:32.6]}
22... Nf8 {[%clk 0:00:56.7]} 23. Nh2 {[%clk 0:02:31.4]} 23... Ng6 {[%clk
0:00:55.4]} 24. Ng4 {[%clk 0:02:31.6]} 24... Kh7 {[%clk 0:00:43.3]} 25. Rg3
{[%clk 0:02:25]} 25... Rf8 {[%clk 0:00:21.8]} 26. f4 {[%clk 0:02:12.2]} 26... f5
{[%clk 0:00:12.9]} 27. exf6 {[%clk 0:01:59.1]} 27... Bxf6 {[%clk 0:00:07.4]} 28.
Ngxf6+ {[%clk 0:01:58.1]} 28... Rxf6 {[%clk 0:00:08.3]} 29. Nxf6+ {[%clk
0:01:58.1]} 29... Kg7 {[%clk 0:00:09.1]} 30. fxg5 {[%clk 0:01:55.5]} 30... hxg5
{[%clk 0:00:09.3]} 31. Rxg5 {[%clk 0:01:54.6]} 1-0

[Event "Early-Titled-Tuesday-Blitz-January-30-2024"]
[Site "Chess.com"]
[Date "2024.01.30"]
[Round "3"]
[White "masnyszachistaaa"]
[Black "Grischuk"]
[Result "0-1"]
[WhiteElo "2550"]
[BlackElo "3078"]
[TimeControl "180+1"]
[EndTime "8:28:29 PST"]
[Termination "Grischuk won by resignation"]

1. e4 {[%clk 0:03:00.9]} 1... e5 {[%clk 0:03:00.3]} 2. Nf3 {[%clk 0:03:00.3]}
2... Nc6 {[%clk 0:03:01.1]} 3. Bb5 {[%clk 0:02:54]} 3... a6 {[%clk 0:03:00.7]}
4. Ba4 {[%clk 0:02:54]} 4... Nf6 {[%clk 0:03:00.6]} 5. O-O {[%clk 0:02:53.1]}
5... Be7 {[%clk 0:03:00.4]} 6. Bxc6 {[%clk 0:02:53.3]} 6... dxc6 {[%clk
0:03:00.3]} 7. d3 {[%clk 0:02:53.6]} 7... Nd7 {[%clk 0:02:55.9]} 8. Nbd2 {[%clk
0:02:53.5]} 8... O-O {[%clk 0:02:52.7]} 9. b3 {[%clk 0:02:53.1]} 9... c5 {[%clk
0:02:45.2]} 10. Bb2 {[%clk 0:02:52.4]} 10... f6 {[%clk 0:02:45.1]} 11. c3 {[%clk
0:02:52.1]} 11... Re8 {[%clk 0:02:31.8]} 12. d4 {[%clk 0:02:52.5]} 12... cxd4
{[%clk 0:02:30.3]} 13. cxd4 {[%clk 0:02:53.4]} 13... exd4 {[%clk 0:02:31.1]} 14.
Nxd4 {[%clk 0:02:54.1]} 14... Bf8 {[%clk 0:02:30.1]} 15. Re1 {[%clk 0:02:48.9]}
15... Ne5 {[%clk 0:02:25]} 16. Nc4 {[%clk 0:02:24.3]} 16... Nxc4 {[%clk
0:02:24.7]} 17. bxc4 {[%clk 0:02:25.2]} 17... c5 {[%clk 0:02:15.7]} 18. Nc2
{[%clk 0:02:11.4]} 18... Qxd1 {[%clk 0:02:10.7]} 19. Raxd1 {[%clk 0:02:11.2]}
19... b5 {[%clk 0:02:05.7]} 20. f3 {[%clk 0:01:48.6]} 20... Be6 {[%clk
0:01:52.7]} 21. Ne3 {[%clk 0:01:41.3]} 21... bxc4 {[%clk 0:01:52.7]} 22. Rc1
{[%clk 0:01:38.4]} 22... Rab8 {[%clk 0:01:50.7]} 23. Ba3 {[%clk 0:01:38.6]}
23... Red8 {[%clk 0:01:41.8]} 24. Nxc4 {[%clk 0:01:13.4]} 24... Rd3 {[%clk
0:01:40.5]} 25. Re3 {[%clk 0:00:29.2]} 25... Bxc4 {[%clk 0:01:39.7]} 26. Rxd3
{[%clk 0:00:27]} 26... Bxd3 {[%clk 0:01:40.6]} 27. Bxc5 {[%clk 0:00:27.6]} 27...
Rb1 {[%clk 0:01:36.3]} 28. Be3 {[%clk 0:00:23.5]} 28... Bc5 {[%clk 0:01:33.8]}
0-1

[Event "Early-Titled-Tuesday-Blitz-January-30-2024"]
[Site "Chess.com"]
[Date "2024.01.30"]
[Round "3"]
[White "bazar-wokzal"]
[Black "SHIVACalypso"]
[Result "0-1"]
[WhiteElo "2592"]
[BlackElo "2448"]
[TimeControl "180+1"]
[EndTime "8:28:39 PST"]
[Termination "SHIVACalypso won by resignation"]

1. e4 {[%clk 0:03:00.9]} 1... e6 {[%clk 0:02:59.1]} 2. d4 {[%clk 0:03:00.5]}
2... d5 {[%clk 0:02:59.5]} 3. e5 {[%clk 0:03:01.1]} 3... c5 {[%clk 0:02:57.8]}
4. c3 {[%clk 0:03:01.6]} 4... Nc6 {[%clk 0:02:53.3]} 5. Nf3 {[%clk 0:03:01.9]}
5... Bd7 {[%clk 0:02:49.1]} 6. a3 {[%clk 0:03:00.8]} 6... c4 {[%clk 0:02:49.2]}
7. b4 {[%clk 0:03:00.4]} 7... cxb3 {[%clk 0:02:48.5]} 8. Qxb3 {[%clk 0:03:00.4]}
8... Na5 {[%clk 0:02:45.7]} 9. Qc2 {[%clk 0:03:00.8]} 9... Rc8 {[%clk
0:02:43.6]} 10. Bd3 {[%clk 0:03:00.5]} 10... Ne7 {[%clk 0:02:40]} 11. Bxh7
{[%clk 0:02:41.8]} 11... g6 {[%clk 0:02:36.7]} 12. Ng5 {[%clk 0:02:41.6]} 12...
Bh6 {[%clk 0:02:30.3]} 13. h4 {[%clk 0:02:41.1]} 13... Kf8 {[%clk 0:02:29.6]}
14. h5 {[%clk 0:02:32.3]} 14... Bxg5 {[%clk 0:02:28.7]} 15. Bxg5 {[%clk
0:02:31.1]} 15... Rxh7 {[%clk 0:02:26.8]} 16. Nd2 {[%clk 0:02:10.1]} 16... Qc7
{[%clk 0:02:17.2]} 17. Rh3 {[%clk 0:02:00.9]} 17... Nf5 {[%clk 0:02:14.1]} 18.
Nf3 {[%clk 0:01:37.8]} 18... Rxh5 {[%clk 0:02:08.7]} 19. Rxh5 {[%clk 0:01:36.9]}
19... gxh5 {[%clk 0:02:09.6]} 20. Rc1 {[%clk 0:01:10.4]} 20... Qc4 {[%clk
0:02:08.8]} 21. Nh4 {[%clk 0:00:53.3]} 21... Nxd4 {[%clk 0:02:01.7]} 22. Qd2
{[%clk 0:00:47.8]} 22... Nab3 {[%clk 0:01:57.9]} 23. Be7+ {[%clk 0:00:37.4]}
23... Ke8 {[%clk 0:01:36.3]} 24. Qe3 {[%clk 0:00:35.7]} 24... Bb5 {[%clk
0:01:27.4]} 0-1

[Event "Early-Titled-Tuesday-Blitz-January-30-2024"]
[Site "Chess.com"]
[Date "2024.01.30"]
[Round "3"]
[White "Hikaru"]
[Black "Legendinunknown"]
[Result "0-1"]
[WhiteElo "3288"]
[BlackElo "2836"]
[TimeControl "180+1"]
[EndTime "8:29:00 PST"]
[Termination "Legendinunknown won by resignation"]

1. Nf3 {[%clk 0:03:00.9]} 1... c5 {[%clk 0:02:53.2]} 2. e4 {[%clk 0:03:00.6]}
2... d6 {[%clk 0:02:49.9]} 3. c3 {[%clk 0:02:58.3]} 3... Nf6 {[%clk 0:02:49.4]}
4. Bd3 {[%clk 0:02:57.8]} 4... Nc6 {[%clk 0:02:46.5]} 5. Bc2 {[%clk 0:02:57.8]}
5... g6 {[%clk 0:02:46.1]} 6. d4 {[%clk 0:02:57.9]} 6... cxd4 {[%clk 0:02:44.2]}
7. cxd4 {[%clk 0:02:58.3]} 7... Bg7 {[%clk 0:02:44.3]} 8. O-O {[%clk 0:02:54.1]}
8... O-O {[%clk 0:02:44]} 9. h3 {[%clk 0:02:51.3]} 9... d5 {[%clk 0:02:37.8]}
10. e5 {[%clk 0:02:49.7]} 10... Ne4 {[%clk 0:02:26.6]} 11. Re1 {[%clk
0:02:47.5]} 11... Nb4 {[%clk 0:02:12.8]} 12. Bb3 {[%clk 0:02:42.9]} 12... a5
{[%clk 0:01:58]} 13. a3 {[%clk 0:02:42.3]} 13... Nc6 {[%clk 0:01:56.6]} 14. Nc3
{[%clk 0:02:41]} 14... Nxc3 {[%clk 0:01:54.3]} 15. bxc3 {[%clk 0:02:41.2]} 15...
e6 {[%clk 0:01:54.7]} 16. h4 {[%clk 0:02:33.3]} 16... h5 {[%clk 0:01:51.1]} 17.
Bg5 {[%clk 0:02:24.6]} 17... Qc7 {[%clk 0:01:49.5]} 18. Qd2 {[%clk 0:02:24.6]}
18... b6 {[%clk 0:01:47.8]} 19. Bf6 {[%clk 0:02:17.7]} 19... Ba6 {[%clk
0:01:40.8]} 20. Qg5 {[%clk 0:02:09.6]} 20... Bd3 {[%clk 0:01:29.9]} 21. Rac1
{[%clk 0:02:04]} 21... a4 {[%clk 0:00:51.6]} 22. Bc2 {[%clk 0:02:04]} 22... Bxc2
{[%clk 0:00:51.2]} 23. Rxc2 {[%clk 0:02:04.9]} 23... Kh7 {[%clk 0:00:41.7]} 24.
g4 {[%clk 0:02:01.9]} 24... Bh6 {[%clk 0:00:39.6]} 25. gxh5 {[%clk 0:02:00.3]}
25... Bxg5 {[%clk 0:00:38.2]} 26. Nxg5+ {[%clk 0:01:58.5]} 26... Kh6 {[%clk
0:00:35.9]} 27. c4 {[%clk 0:01:51.5]} 27... Nxd4 {[%clk 0:00:35.5]} 28. Rc3
{[%clk 0:01:52]} 28... gxh5 {[%clk 0:00:33.9]} 29. Rg3 {[%clk 0:01:45.3]} 29...
Nf5 {[%clk 0:00:31.3]} 30. Rc3 {[%clk 0:01:45.1]} 30... d4 {[%clk 0:00:28.9]}
31. Rc2 {[%clk 0:01:42.1]} 31... Rg8 {[%clk 0:00:27.7]} 32. Kh2 {[%clk
0:01:40.1]} 32... Rg6 {[%clk 0:00:26.5]} 33. f4 {[%clk 0:01:40.1]} 33... Rxf6
{[%clk 0:00:24.4]} 34. exf6 {[%clk 0:01:41]} 34... Qxf4+ {[%clk 0:00:22.4]} 35.
Kg1 {[%clk 0:01:41.7]} 35... Qg3+ {[%clk 0:00:20.1]} 36. Kf1 {[%clk 0:01:42.1]}
36... Ne3+ {[%clk 0:00:19.2]} 37. Rxe3 {[%clk 0:01:42.7]} 37... dxe3 {[%clk
0:00:19.8]} 38. Rg2 {[%clk 0:01:40.3]} 38... Qf4+ {[%clk 0:00:19.3]} 39. Ke2
{[%clk 0:01:40.8]} 0-1

[Event "Early-Titled-Tuesday-Blitz-January-30-2024"]
[Site "Chess.com"]
[Date "2024.01.30"]
[Round "3"]
[White "jaskol95"]
[Black "KIEV-1"]
[Result "0-1"]
[WhiteElo "2543"]
[BlackElo "2249"]
[TimeControl "180+1"]
[EndTime "8:29:01 PST"]
[Termination "KIEV-1 won by checkmate"]

1. d4 {[%clk 0:03:00.9]} 1... d5 {[%clk 0:02:59.8]} 2. Nc3 {[%clk 0:03:01.5]}
2... c6 {[%clk 0:03:00.2]} 3. Bf4 {[%clk 0:03:01.2]} 3... Nf6 {[%clk 0:03:00.6]}
4. e3 {[%clk 0:03:01.4]} 4... e6 {[%clk 0:02:58.1]} 5. Nf3 {[%clk 0:03:01.9]}
5... Bd6 {[%clk 0:02:58.4]} 6. Ne5 {[%clk 0:03:02.2]} 6... O-O {[%clk 0:02:58]}
7. Bd3 {[%clk 0:03:02.2]} 7... Qe7 {[%clk 0:02:58.2]} 8. Qf3 {[%clk 0:03:01.7]}
8... Nbd7 {[%clk 0:02:58.2]} 9. Qh3 {[%clk 0:03:00.5]} 9... Re8 {[%clk
0:02:57.5]} 10. g4 {[%clk 0:02:35.2]} 10... Nf8 {[%clk 0:02:56.4]} 11. g5 {[%clk
0:02:32.1]} 11... Bxe5 {[%clk 0:02:56.7]} 12. Bxe5 {[%clk 0:02:18.4]} 12... N6d7
{[%clk 0:02:55.6]} 13. O-O-O {[%clk 0:02:19]} 13... Nxe5 {[%clk 0:02:51.1]} 14.
dxe5 {[%clk 0:02:19.2]} 14... c5 {[%clk 0:02:50.7]} 15. f4 {[%clk 0:01:59.9]}
15... c4 {[%clk 0:02:50.5]} 16. Be2 {[%clk 0:02:00.4]} 16... b5 {[%clk
0:02:50.7]} 17. e4 {[%clk 0:01:40]} 17... b4 {[%clk 0:02:41]} 18. Nb1 {[%clk
0:01:38.8]} 18... c3 {[%clk 0:02:30.4]} 19. exd5 {[%clk 0:01:19.1]} 19... cxb2+
{[%clk 0:02:30.3]} 20. Kxb2 {[%clk 0:01:19.2]} 20... exd5 {[%clk 0:02:30.8]} 21.
Qe3 {[%clk 0:01:09.4]} 21... a5 {[%clk 0:02:28.7]} 22. Bf3 {[%clk 0:01:06.4]}
22... Bb7 {[%clk 0:02:21.6]} 23. Bxd5 {[%clk 0:01:04.7]} 23... Bxd5 {[%clk
0:02:17]} 24. Rxd5 {[%clk 0:01:05.6]} 24... Qc7 {[%clk 0:01:57.5]} 25. Qc5
{[%clk 0:01:02.1]} 25... Qb7 {[%clk 0:01:51.3]} 26. Rhd1 {[%clk 0:00:58.6]}
26... Rec8 {[%clk 0:01:47.7]} 27. Qf2 {[%clk 0:00:44.5]} 27... a4 {[%clk
0:01:36.1]} 28. R1d3 {[%clk 0:00:18.7]} 28... b3 {[%clk 0:01:23.6]} 29. cxb3
{[%clk 0:00:17.6]} 29... axb3 {[%clk 0:01:23.8]} 30. axb3 {[%clk 0:00:18.5]}
30... Qa6 {[%clk 0:01:17.5]} 31. Nc3 {[%clk 0:00:18.6]} 31... Qa1+ {[%clk
0:01:12.8]} 32. Kc2 {[%clk 0:00:18.4]} 32... Ra2# {[%clk 0:01:11.4]} 0-1

[Event "Early-Titled-Tuesday-Blitz-January-30-2024"]
[Site "Chess.com"]
[Date "2024.01.30"]
[Round "3"]
[White "GoValya"]
[Black "Djager97"]
[Result "0-1"]
[WhiteElo "2317"]
[BlackElo "2572"]
[TimeControl "180+1"]
[EndTime "8:29:02 PST"]
[Termination "Djager97 won by resignation"]

1. d4 {[%clk 0:03:00.9]} 1... Nf6 {[%clk 0:02:58.7]} 2. c4 {[%clk 0:02:52.4]}
2... c5 {[%clk 0:02:57.9]} 3. d5 {[%clk 0:02:48.4]} 3... d6 {[%clk 0:02:58.1]}
4. g3 {[%clk 0:02:45.1]} 4... g6 {[%clk 0:02:58.3]} 5. Bg2 {[%clk 0:02:45.3]}
5... Bg7 {[%clk 0:02:58.8]} 6. Nc3 {[%clk 0:02:43.1]} 6... O-O {[%clk
0:02:59.7]} 7. Nf3 {[%clk 0:02:42.9]} 7... e6 {[%clk 0:03:00.3]} 8. O-O {[%clk
0:02:36.6]} 8... exd5 {[%clk 0:02:59.9]} 9. cxd5 {[%clk 0:02:36.9]} 9... Re8
{[%clk 0:02:58.1]} 10. Nd2 {[%clk 0:02:17.8]} 10... Nbd7 {[%clk 0:02:47.3]} 11.
Nc4 {[%clk 0:02:14.4]} 11... Ne5 {[%clk 0:02:47.4]} 12. Nxe5 {[%clk 0:02:14.7]}
12... Rxe5 {[%clk 0:02:44.3]} 13. Bf4 {[%clk 0:02:14.2]} 13... Re7 {[%clk
0:02:08.4]} 14. Nb5 {[%clk 0:02:06]} 14... Ne8 {[%clk 0:02:07.5]} 15. Qd2 {[%clk
0:01:42.8]} 15... a6 {[%clk 0:02:05.7]} 16. Nc3 {[%clk 0:01:42.6]} 16... b5
{[%clk 0:02:05.2]} 17. a3 {[%clk 0:01:33.7]} 17... Nf6 {[%clk 0:02:00]} 18. h3
{[%clk 0:01:29.9]} 18... Nh5 {[%clk 0:01:53.1]} 19. Bg5 {[%clk 0:01:27.4]} 19...
f6 {[%clk 0:01:51.3]} 20. Bh6 {[%clk 0:01:27.6]} 20... f5 {[%clk 0:01:44.8]} 21.
e4 {[%clk 0:01:20.6]} 21... Qf8 {[%clk 0:01:34.7]} 22. Bxg7 {[%clk 0:01:13.6]}
22... Kxg7 {[%clk 0:01:34.6]} 23. Rfe1 {[%clk 0:01:05.4]} 23... f4 {[%clk
0:01:28.2]} 24. g4 {[%clk 0:00:43.3]} 24... f3 {[%clk 0:01:27.1]} 25. gxh5
{[%clk 0:00:43.6]} 25... fxg2 {[%clk 0:01:27.3]} 26. Kxg2 {[%clk 0:00:30.5]}
26... Bxh3+ {[%clk 0:01:25.8]} 27. Kxh3 {[%clk 0:00:16.5]} 27... Qf3+ {[%clk
0:01:26]} 28. Kh2 {[%clk 0:00:15.3]} 28... Re5 {[%clk 0:01:26.4]} 29. h6+ {[%clk
0:00:10.4]} 29... Kg8 {[%clk 0:01:25.7]} 0-1

[Event "Early-Titled-Tuesday-Blitz-January-30-2024"]
[Site "Chess.com"]
[Date "2024.01.30"]
[Round "3"]
[White "Talent-OF-Slovenia"]
[Black "Adar_07"]
[Result "0-1"]
[WhiteElo "2471"]
[BlackElo "2647"]
[TimeControl "180+1"]
[EndTime "8:29:04 PST"]
[Termination "Adar_07 won by resignation"]

1. e4 {[%clk 0:02:52.9]} 1... c5 {[%clk 0:02:55]} 2. Nc3 {[%clk 0:02:49.4]} 2...
Nc6 {[%clk 0:02:54]} 3. Bb5 {[%clk 0:02:48]} 3... Nd4 {[%clk 0:02:53.7]} 4. Bc4
{[%clk 0:02:47.3]} 4... e6 {[%clk 0:02:50.5]} 5. Nge2 {[%clk 0:02:45.9]} 5...
Ne7 {[%clk 0:02:50.2]} 6. Nxd4 {[%clk 0:02:44.7]} 6... cxd4 {[%clk 0:02:51.1]}
7. Ne2 {[%clk 0:02:45.3]} 7... Nc6 {[%clk 0:02:51.4]} 8. d3 {[%clk 0:02:45]}
8... a6 {[%clk 0:02:47.6]} 9. O-O {[%clk 0:02:44.3]} 9... b5 {[%clk 0:02:47.6]}
10. Bb3 {[%clk 0:02:44.3]} 10... g6 {[%clk 0:02:47.3]} 11. f4 {[%clk 0:02:31.7]}
11... Bg7 {[%clk 0:02:39.6]} 12. Qe1 {[%clk 0:02:27.9]} 12... O-O {[%clk
0:02:39.8]} 13. Qf2 {[%clk 0:02:26.4]} 13... d5 {[%clk 0:02:39.8]} 14. f5 {[%clk
0:02:13.8]} 14... dxe4 {[%clk 0:02:38.8]} 15. f6 {[%clk 0:02:08]} 15... Bh8
{[%clk 0:02:33]} 16. dxe4 {[%clk 0:02:00.4]} 16... a5 {[%clk 0:02:19.3]} 17. a4
{[%clk 0:01:52]} 17... Ba6 {[%clk 0:02:19.3]} 18. Bh6 {[%clk 0:01:47.8]} 18...
Re8 {[%clk 0:02:19.1]} 19. Rfd1 {[%clk 0:01:40.3]} 19... Qxf6 {[%clk 0:02:10.9]}
20. Qg3 {[%clk 0:01:04.1]} 20... bxa4 {[%clk 0:02:08.4]} 21. Bxa4 {[%clk
0:01:05]} 21... Bxe2 {[%clk 0:02:09.1]} 22. Bxc6 {[%clk 0:01:02.5]} 22... Bxd1
{[%clk 0:02:09.2]} 23. Rxd1 {[%clk 0:01:00.3]} 23... Qe5 {[%clk 0:02:03.8]} 24.
Bf4 {[%clk 0:00:49]} 24... Qc5 {[%clk 0:02:03.2]} 25. Bxa8 {[%clk 0:00:43.3]}
25... d3+ {[%clk 0:02:00.1]} 26. Be3 {[%clk 0:00:17.4]} 26... dxc2 {[%clk
0:01:58.4]} 27. Rc1 {[%clk 0:00:12.3]} 27... Bd4 {[%clk 0:01:56.6]} 28. Bxd4
{[%clk 0:00:08.2]} 28... Qxd4+ {[%clk 0:01:57.5]} 29. Qf2 {[%clk 0:00:09]} 29...
Qxb2 {[%clk 0:01:29]} 30. Rf1 {[%clk 0:00:01.8]} 30... f5 {[%clk 0:01:28.8]} 31.
exf5 {[%clk 0:00:02.2]} 31... c1=Q {[%clk 0:01:28.5]} 32. fxg6 {[%clk
0:00:02.2]} 32... Qxf2+ {[%clk 0:01:27.3]} 0-1

[Event "Early-Titled-Tuesday-Blitz-January-30-2024"]
[Site "Chess.com"]
[Date "2024.01.30"]
[Round "3"]
[White "Louis-Paulsen-Fan"]
[Black "ATM622"]
[Result "1-0"]
[WhiteElo "2259"]
[BlackElo "2466"]
[TimeControl "180+1"]
[EndTime "8:29:06 PST"]
[Termination "Louis-Paulsen-Fan won by resignation"]

1. d4 {[%clk 0:03:00.9]} 1... Nf6 {[%clk 0:02:59.3]} 2. Nf3 {[%clk 0:03:01.1]}
2... e6 {[%clk 0:02:58.5]} 3. c4 {[%clk 0:03:01.3]} 3... d5 {[%clk 0:02:58.9]}
4. Nc3 {[%clk 0:03:01.5]} 4... Be7 {[%clk 0:02:57.6]} 5. Bg5 {[%clk 0:03:01.5]}
5... O-O {[%clk 0:02:57]} 6. e3 {[%clk 0:03:02]} 6... h6 {[%clk 0:02:56.6]} 7.
Bh4 {[%clk 0:03:01.6]} 7... Ne4 {[%clk 0:02:57]} 8. Bxe7 {[%clk 0:03:00.3]} 8...
Qxe7 {[%clk 0:02:57.4]} 9. Rc1 {[%clk 0:03:00.7]} 9... Nxc3 {[%clk 0:02:53.2]}
10. Rxc3 {[%clk 0:03:01.6]} 10... dxc4 {[%clk 0:02:52]} 11. Bxc4 {[%clk
0:03:01.1]} 11... b6 {[%clk 0:02:50.5]} 12. O-O {[%clk 0:02:59.7]} 12... Bb7
{[%clk 0:02:50.7]} 13. Qe2 {[%clk 0:03:00.1]} 13... Nd7 {[%clk 0:02:47.7]} 14.
Bb5 {[%clk 0:02:52.4]} 14... Nf6 {[%clk 0:02:41.4]} 15. Bc6 {[%clk 0:02:39.5]}
15... Bxc6 {[%clk 0:01:54]} 16. Rxc6 {[%clk 0:02:40.4]} 16... Rac8 {[%clk
0:01:53.9]} 17. Rfc1 {[%clk 0:02:38.5]} 17... Nd5 {[%clk 0:01:51.3]} 18. a3
{[%clk 0:02:35.3]} 18... a5 {[%clk 0:01:40.1]} 19. e4 {[%clk 0:02:21.2]} 19...
Nf6 {[%clk 0:01:34.5]} 20. Qc2 {[%clk 0:02:19.8]} 20... Rfd8 {[%clk 0:01:27]}
21. h3 {[%clk 0:02:09.9]} 21... g5 {[%clk 0:01:18]} 22. Rd1 {[%clk 0:01:32.8]}
22... Kg7 {[%clk 0:01:03.1]} 23. Ne5 {[%clk 0:01:26.2]} 23... Rd6 {[%clk
0:00:50.8]} 24. Rxd6 {[%clk 0:01:18.2]} 24... Qxd6 {[%clk 0:00:49.1]} 25. Nxf7
{[%clk 0:01:10.2]} 25... Kxf7 {[%clk 0:00:48.6]} 26. e5 {[%clk 0:01:10.6]} 26...
Qe7 {[%clk 0:00:48.2]} 27. exf6 {[%clk 0:01:10.8]} 27... Qxf6 {[%clk 0:00:48.5]}
28. d5 {[%clk 0:01:03.6]} 28... e5 {[%clk 0:00:38.4]} 29. Qh7+ {[%clk
0:00:59.1]} 29... Qg7 {[%clk 0:00:38.1]} 30. Qf5+ {[%clk 0:00:59.1]} 1-0

[Event "Early-Titled-Tuesday-Blitz-January-30-2024"]
[Site "Chess.com"]
[Date "2024.01.30"]
[Round "3"]
[White "alexrustemov"]
[Black "ilya2700"]
[Result "1-0"]
[WhiteElo "2784"]
[BlackElo "2330"]
[TimeControl "180+1"]
[EndTime "8:29:08 PST"]
[Termination "alexrustemov won on time"]

1. d4 {[%clk 0:03:00.9]} 1... d5 {[%clk 0:02:59.3]} 2. c4 {[%clk 0:03:00.9]}
2... e6 {[%clk 0:02:58.9]} 3. Nc3 {[%clk 0:03:01.2]} 3... Nf6 {[%clk 0:02:57.8]}
4. Nf3 {[%clk 0:03:01.1]} 4... Be7 {[%clk 0:02:57.7]} 5. Bg5 {[%clk 0:03:00.1]}
5... O-O {[%clk 0:02:56.1]} 6. e3 {[%clk 0:03:00.1]} 6... Nbd7 {[%clk
0:02:56.3]} 7. Rc1 {[%clk 0:02:57.6]} 7... b6 {[%clk 0:02:56]} 8. cxd5 {[%clk
0:02:55.7]} 8... exd5 {[%clk 0:02:56.9]} 9. Bb5 {[%clk 0:02:45.6]} 9... Bb7
{[%clk 0:02:52.1]} 10. Qa4 {[%clk 0:02:45]} 10... a6 {[%clk 0:02:41.9]} 11. Bxd7
{[%clk 0:02:44.4]} 11... Nxd7 {[%clk 0:02:42.8]} 12. Bxe7 {[%clk 0:02:43.6]}
12... Qxe7 {[%clk 0:02:43.7]} 13. O-O {[%clk 0:02:42.7]} 13... Rfe8 {[%clk
0:02:21.4]} 14. Rfd1 {[%clk 0:02:36.3]} 14... Nf6 {[%clk 0:02:14.2]} 15. b4
{[%clk 0:02:31.3]} 15... Rac8 {[%clk 0:02:09.5]} 16. Qb3 {[%clk 0:02:29.2]}
16... Qd6 {[%clk 0:02:01]} 17. a4 {[%clk 0:02:22.8]} 17... c5 {[%clk 0:01:54.1]}
18. bxc5 {[%clk 0:02:22.2]} 18... bxc5 {[%clk 0:01:55]} 19. Qxb7 {[%clk
0:02:13.7]} 19... cxd4 {[%clk 0:01:04.9]} 20. Nxd4 {[%clk 0:02:08.7]} 20... Qa3
{[%clk 0:00:25.2]} 21. Qb3 {[%clk 0:02:03.7]} 21... Qd6 {[%clk 0:00:23.4]} 22.
h3 {[%clk 0:01:57.6]} 22... Rc4 {[%clk 0:00:23.2]} 23. Nxd5 {[%clk 0:01:52.2]}
23... Rxc1 {[%clk 0:00:07.5]} 24. Nxf6+ {[%clk 0:01:51.5]} 24... Qxf6 {[%clk
0:00:08.4]} 25. Rxc1 {[%clk 0:01:51.2]} 25... h6 {[%clk 0:00:09.2]} 26. Rc6
{[%clk 0:01:42.7]} 26... Qg5 {[%clk 0:00:07.3]} 27. Rxa6 {[%clk 0:01:38.1]}
27... Rc8 {[%clk 0:00:05.9]} 28. Rc6 {[%clk 0:01:36.6]} 28... Rd8 {[%clk
0:00:06.2]} 29. Qc4 {[%clk 0:01:31.1]} 29... Qa5 {[%clk 0:00:02.7]} 30. Rc8
{[%clk 0:01:28.6]} 1-0